Workbook

Sheet Billing Rate
D1: Low | E1: Mid | F1: High | G1: Target
B2: Monthly
A5: Total Employee Compensation | D5: ='Business Expense'!D9 -> $126,334.88 | E5: ='Business Expense'!E9 -> $181,334.88 | F5: ='Business Expense'!F9 -> $225,334.88
A6: Total SE Tax | D6: ='SE Tax'!D6 -> $19,329.24 | E6: ='SE Tax'!E6 -> $27,744.24 | F6: ='SE Tax'!F6 -> $34,476.24
A7: Taxible Gross Income after SE Tax | D7: =D5-D6 -> $107,005.64 | E7: =E5-E6 -> $153,590.64 | F7: $190,858.64
A9: Margin | D9: 20% | E9: =D9 -> 20% | F9: =D9 -> 20%
A10: Business Expense + Margin | D10: ='Business Expense'!D45*(1+D9) -> $168,305.86 | E10: ='Business Expense'!E45*(1+E9) -> $232,289.86 | F10: ='Business Expense'!F45*(1+F9) -> $287,105.86
A12: Billing Rate(s) | H12: IBM Korea | I12: Microsoft
A13: Hourly | D13: =D14/8 -> $186.18 | E13: =E14/8 -> $256.96 | F13: $317.59 | H13: $235.00 | I13: =I14/8 -> $250.00
A14: Daily | D14: =D10/Est._Billable_Days -> $1,489.43 | E14: =E10/Est._Billable_Days -> $2,055.66 | F14: =F10/Est._Billable_Days -> $2,540.76 | H14: =H13*8 -> $1,880.00 | I14: $2,000.00
A15: Weekly | D15: =D14*5 -> $7,447.16 | E15: =E14*5 -> $10,278.31 | F15: $12,703.80 | H15: =H14*5 -> $9,400.00 | I15: =I14*5 -> $10,000.00
A16: Monthly | D16: =D14*20 -> $29,788.65 | E16: =E14*20 -> $41,113.25 | F16: $50,815.20 | H16: =(H15*52)/12 -> $40,733.33 | I16: =(I15*52)/12 -> $43,333.33
A17: Yearly | D17: =D16*12 -> $357,463.76 | E17: =E16*12 -> $493,358.99 | F17: $609,782.35 | H17: =H16*12 -> $488,800.00 | I17: =I16*12 -> $520,000.00
A20: Maximum Available Billable Days | B20: =Available_Billable_Days -> 175 | D20: =D14*Available_Billable_Days -> $260,650.66 | E20: =E14*Available_Billable_Days -> $359,740.93 | F20: =F14*Available_Billable_Days -> $444,632.96

Sheet Billable Days
A3: Billable Days Calculation
B4: Constants and Variables | C4: Hours per Year | D4: Days per Year | E4: Weeks per Year | G4: Available Hrs Percentage | H4: Billable Hrs Ratio
A5: Std Workday Hours | B5: 8
A6: Std Workweek Days | B6: 5
A7: Days in Year | C7: =D7*Std_Workday_Hours -> 2920 | D7: 365 | E7: =D7/7 -> 52
A8: WeekEnds | C8: =D8*Std_Workday_Hours -> 832 | D8: 104
A9: Net Week Hours|days | C9: =D9*Std_Workday_Hours -> 2088 | D9: =D7-D8 -> 261 | E9: =D9/Std_Workweek_Days -> 52
A11: Vacation | C11: =D11*Std_Workday_Hours -> 120 | D11: 15 | E11: =D11/Std_Workweek_Days -> 3
A12: Holidays | C12: =D12*Std_Workday_Hours -> 96 | D12: 12
A13: Non Billable Time Off | C13: =D13*Std_Workday_Hours -> 216 | D13: =SUM(D11:D12) -> 27 | E13: =D13/5 -> 5.4
A16: (Available) Work Hours|Days|Weeks | C16: =C9-C13 -> 1872 | D16: =D9-D13 -> 234 | E16: =D16/5 -> 46.8
A18: Business Management, Marketing and Sales (OverHead) | B18: Hrs per Week
A19: Planning, Marketing and Sales | B19: 8 | C19: =Marketing_Days_per_Year*Std_Workday_Hours -> 376 | D19: =ROUNDUP((B19/Std_Workday_Hours)*Available_Work_Weeks, 0) -> 47 | E19: =Marketing_Days_per_Year/5 -> 9.4 | G19: =C19/C16 -> 20% | H19: =C19/C26 -> 0.4159292035
A20: Administrative | B20: 2 | C20: =Admin_Days_per_Year*Std_Workday_Hours -> 96 | D20: =ROUNDUP((B20/Std_Workday_Hours)*Available_Work_Weeks, 0) -> 12 | E20: =Marketing_Days_per_Year/5 -> 9.4 | G20: =C20/C16 -> 5% | H20: =C20/C26 -> 0.1061946903
B21: =SUM(B19:B20) -> 10 | C21: =SUM(C19:C20) -> 472 | D21: =SUM(D19:D20) -> 59 | E21: =Marketing_Days_per_Year/5 -> 9.4
A23: (Available) Billable Hours|Days|Weeks | C23: =Available_Billable_Days*Std_Workday_Hours -> 1400 | D23: =Available_Work_Days-Business_Overhead_Days_per_Year -> 175 | E23: =Available_Billable_Days/Std_Workweek_Days -> 35
A25: Est. Down Time | B25: 35% | C25: =D25*Std_Workday_Hours -> 496 | D25: =ROUNDUP(Available_Billable_Days*Est._Down_Time_Percentage,0) -> 62 | E25: =D25/Std_Workweek_Days -> 12.4
A26: Est. Billable Hour | Days | Weeks | C26: =Est._Billable_Days*Std_Workday_Hours -> 904 | D26: =Available_Billable_Days-D25 -> 113 | E26: =Est._Billable_Days/Std_Workweek_Days -> 22.6

Sheet Business Expense
D1: Low | E1: Mid | F1: High | G1: Target
B2: Monthly
A3: Staff
A4: Health Insurance | B4: $1,361.24 | D4: =B4*12 -> $16,334.88 | E4: =D4 -> $16,334.88 | F4: =D4 -> $16,334.88
A5: Life Insurance
A6: Disability Insurance
A7: Salary | D7: $100,000.00 | E7: $150,000.00 | F7: $190,000.00
A8: SEP 401K | B8: 20% | D8: =(D7*SEP_401K_Percentage)*0.5 -> $10,000.00 | E8: =(E7*SEP_401K_Percentage)*0.5 -> $15,000.00 | F8: =(F7*SEP_401K_Percentage)*0.5 -> $19,000.00
A9: Total Employee Compensation | D9: =SUM(D4:D8) -> $126,334.88 | E9: =SUM(E4:E8) -> $181,334.88 | F9: $225,334.88
A13: Office
A14: Office Space (20'x20') | B14: =0.1*(20000/12) -> $166.67 | D14: =B14*12 -> $2,000.00 | E14: =B14*12 -> $2,000.00 | F14: =B14*12 -> $2,000.00
A16: Computers | B16: $100.00 | D16: =B16*12 -> $1,200.00 | E16: =D16 -> $1,200.00 | F16: =D16 -> $1,200.00
A17: Books & Education | B17: $100.00 | D17: =B17*12 -> $1,200.00 | E17: =D17 -> $1,200.00 | F17: =D17 -> $1,200.00
A18: Software | B18: $100.00 | D18: $1,200.00 | E18: $1,200.00 | F18: $1,200.00
A19: Equipment Total | B19: =SUM(B16:B18) -> $300.00 | D19: =SUM(D16:D18) -> $3,600.00 | E19: $3,600.00 | F19: $3,600.00
A21: Supplies Total | B21: $20.00 | D21: =B21*12 -> $240.00 | E21: $240.00 | F21: =D21 -> $240.00
A23: Insurance Total | B23: $100.00 | D23: =B23*12 -> $1,200.00 | E23: $1,200.00 | F23: =D23 -> $1,200.00
A25: Utilities
A26: Cellphone | B26: $150.00 | D26: =B26*12 -> $1,800.00 | E26: =D26 -> $1,800.00 | F26: =D26 -> $1,800.00
A27: Telephone | B27: $30.00 | D27: =B27*12 -> $360.00 | E27: =D27 -> $360.00 | F27: =D27 -> $360.00
A28: Electricity | B28: $70.00 | D28: $840.00 | E28: $840.00 | F28: $840.00
A29: Internet, Email & DSL | B29: $100.00 | D29: =B29*12 -> $1,200.00 | E29: =D29 -> $1,200.00 | F29: =D29 -> $1,200.00
A30: Trash | B30: $20.00 | D30: $240.00 | E30: $240.00 | F30: $240.00
A31: Total Utilities | B31: =SUM(B26:B30) -> $370.00 | D31: =SUM(D26:D30) -> $4,440.00 | E31: $4,440.00 | F31: $4,440.00
A33: TOTAL OFFICE EXPENSES | B33: =B14+B19+B21+B23+B31 -> $956.67 | D33: =D14+D19+D21+D23+D31 -> $11,480.00 | E33: $11,480.00 | F33: $11,480.00
A35: Accounting, Banking and Legal Fees | B35: $1,000.00 | D35: =B35 -> $1,000.00 | E35: =B35 -> $1,000.00 | F35: =B35 -> $1,000.00
A37: Advertising& Marketing | B37: $100.00 | D37: =B37*12 -> $1,200.00 | E37: =D37 -> $1,200.00 | F37: =D37 -> $1,200.00
A39: Automotive | B39: $140.00 | D39: =B39*12 -> $1,680.00 | E39: =D2 -> 0 | F39: =D39 -> $1,680.00
A40: Travel & Meals | D40: =B40*12 -> 0 | E40: =D40 -> 0 | F40: =D40 -> 0
A41: Travel & Entertainment Total | B41: =SUM(B39:B40) -> $140.00 | D41: =SUM(D39:D40) -> $1,680.00 | E41: =SUM(E39:E40) -> 0 | F41: $1,680.00
A45: Total Business Expense | D45: =D9+D14+D19+D31+D35+D37+D41 -> $140,254.88 | E45: =E9+E14+E19+E31+E35+E37+E41 -> $193,574.88 | F45: $239,254.88

Sheet SE Tax
D1: Low | E1: Mid | F1: High | G1: Target
B2: Monthly | C2: on first
A3: SE TAX
A4: FICA | B4: 12.40% | C4: $97,500
A5: Medicare | B5: 2.90%
A6: Total SE Tax | B6: 15.30% | D6: ='Business Expense'!D9*'SE Tax'!$B$6 -> $19,329.24 | E6: ='Business Expense'!E9*'SE Tax'!$B$6 -> $27,744.24 | F6: ='Business Expense'!F9*'SE Tax'!$B$6 -> $34,476.24
D11: ='Business Expense'!D9*B4 -> $15,665.53
A15: Net Income from Self-Employment | B15: ='Business Expense'!D9 -> $126,334.88
A16: Net Earning Factor | B16: 0.9235
A17: Net Earnings | B17: =B15*Net_Earning_Factor -> $116,670.26
A19: FICA_OverMax Income | B19: =B17-C4 -> $19,170.26
A20: MaxCombinedFICAandMedicare Tax | B20: =C4*B6 -> $14,917.50
A21: MedicareOverCombined Rate (Unlimited) | B21: =B19*B5 -> $555.94
A22: Total SE Tax | B22: =SUM(B20:B21) -> $15,473.44

Sheet Five Year Pro Forma
C1: FY1 | D1: FY2 | E1: FY3 | F1: FY4 | G1: FY5
A2: Inflation Rate Adjustement | B2: 105%
A3: Daily Billing Rate | C3: ='Billing Rate'!E14 -> $2,055.66 | D3: =C3*Inflation_Rate_Adjustement -> $2,158.45 | E3: $2,266.37 | F3: $2,379.69 | G3: $2,498.67
A4: Total Revenue | C4: ='Billing Rate'!E17 -> $493,358.99 | D4: $518,026.94 | E4: $543,928.28 | F4: $571,124.70 | G4: $599,680.93
A7: Expenses:
A8: Employee Compensation | C8: ='Business Expense'!E9 -> $181,334.88 | D8: =C8*Inflation_Rate_Adjustement -> $190,401.62 | E8: $199,921.71 | F8: $209,917.79 | G8: $220,413.68
A9: Taxes | C9: ='Billing Rate'!E6 -> $27,744.24 | D9: $29,131.45 | E9: $30,588.02 | F9: $32,117.42 | G9: $33,723.29
A10: Office Expenses | C10: ='Business Expense'!E33 -> $11,480.00 | D10: $12,054.00 | E10: $12,656.70 | F10: $13,289.54 | G10: $13,954.01
A11: Marketing | C11: ='Business Expense'!D37 -> $1,200.00 | D11: $1,260.00 | E11: $1,323.00 | F11: $1,389.15 | G11: $1,458.61
A12: Administration | C12: ='Business Expense'!D35 -> $1,000.00 | D12: $1,050.00 | E12: $1,102.50 | F12: $1,157.63 | G12: $1,215.51
A13: Total Expenses | C13: =SUM(C8:C12) -> $222,759.12 | D13: =SUM(D8:D12) -> $233,897.07 | E13: $245,591.93 | F13: $257,871.52 | G13: $270,765.10
A16: Taxable Revenue | C16: =C4-C13 -> $270,599.87 | D16: =D4-D13 -> $284,129.86 | E16: $298,336.36 | F16: $313,253.17 | G16: $328,915.83
A17: Estimated Income Tax | B17: 40% | C17: =C16*Estimated_Income_Tax -> $108,239.95 | D17: =D16*Estimated_Income_Tax -> $113,651.95 | E17: =E16*Estimated_Income_Tax -> $119,334.54 | F17: =F16*Estimated_Income_Tax -> $125,301.27 | G17: =G16*Estimated_Income_Tax -> $131,566.33
A18: Net Revenue | C18: =C16-C17 -> $162,359.92 | D18: =D16-D17 -> $170,477.92 | E18: $179,001.81 | F18: $187,951.90 | G18: $197,349.50
A20: Business Reserve | B20: 10% | C20: =C18*Business_Reserve -> $16,235.99 | D20: =D18*Business_Reserve -> $17,047.79 | E20: =E18*Business_Reserve -> $17,900.18 | F20: =F18*Business_Reserve -> $18,795.19 | G20: =G18*Business_Reserve -> $19,734.95
A22: Net Income | C22: =C18-C20 -> $146,123.93 | D22: =D18-D20 -> $153,430.13 | E22: $161,101.63 | F22: $169,156.71 | G22: $177,614.55
